[Event "*** Titled Tuesday Blitz"]
[Site "Chess.com"]
[Date "2019.06.04"]
[Round "4"]
[White "fm_magua"]
[Black "GMKrikor"]
[Result "1-0"]
[WhiteElo "2485"]
[BlackElo "2700"]
[TimeControl "180+2"]
[EndTime "13:49:11 PDT"]
[Termination "fm_magua won by resignation"]

1. e4 {[%clk 0:03:01.9]} 1... c5 {[%clk 0:02:56.6]} 2. Nf3 {[%clk 0:03:03]} 2...
e6 {[%clk 0:02:57.3]} 3. d4 {[%clk 0:03:04.4]} 3... cxd4 {[%clk 0:02:58.2]} 4.
Nxd4 {[%clk 0:03:06.3]} 4... Nc6 {[%clk 0:02:58.8]} 5. Nc3 {[%clk 0:03:07.6]}
5... a6 {[%clk 0:02:59.4]} 6. Be2 {[%clk 0:03:08.7]} 6... d6 {[%clk 0:02:57.2]}
7. O-O {[%clk 0:03:10]} 7... Nf6 {[%clk 0:02:58.1]} 8. Be3 {[%clk 0:03:09.1]}
8... Be7 {[%clk 0:02:58.3]} 9. f4 {[%clk 0:03:09.9]} 9... O-O {[%clk 0:02:56.9]}
10. a4 {[%clk 0:03:09.7]} 10... Bd7 {[%clk 0:02:51.5]} 11. Kh1 {[%clk
0:03:09.8]} 11... Qc7 {[%clk 0:02:36.4]} 12. Qe1 {[%clk 0:03:10.1]} 12... Na5
{[%clk 0:02:25.8]} 13. Qg3 {[%clk 0:03:05.6]} 13... Nc4 {[%clk 0:02:21.7]} 14.
Bxc4 {[%clk 0:03:04.6]} 14... Qxc4 {[%clk 0:02:22.2]} 15. e5 {[%clk 0:03:00.2]}
15... Nd5 {[%clk 0:02:15.4]} 16. Nxd5 {[%clk 0:02:51.1]} 16... Qxd5 {[%clk
0:02:15.9]} 17. Rad1 {[%clk 0:02:47.5]} 17... Qc4 {[%clk 0:02:06.6]} 18. b3
{[%clk 0:02:47.4]} 18... Qc7 {[%clk 0:02:05.3]} 19. f5 {[%clk 0:02:39.1]} 19...
exf5 {[%clk 0:01:51.4]} 20. Bh6 {[%clk 0:02:34.8]} 20... g6 {[%clk 0:01:50.9]}
21. Bxf8 {[%clk 0:02:23.5]} 21... Bxf8 {[%clk 0:01:47.4]} 22. Nxf5 {[%clk
0:02:12.1]} 22... Bxf5 {[%clk 0:01:39.2]} 23. Rxf5 {[%clk 0:02:12.1]} 23... Qxc2
{[%clk 0:01:37.8]} 24. Rdf1 {[%clk 0:02:10.8]} 24... Re8 {[%clk 0:01:07.2]} 25.
Rxf7 {[%clk 0:01:56.1]} 25... dxe5 {[%clk 0:01:02.9]} 26. Qh3 {[%clk 0:01:29.7]}
26... h5 {[%clk 0:01:01.4]} 27. Rxf8+ {[%clk 0:01:21.5]} 27... Rxf8 {[%clk
0:01:02]} 28. Qe6+ {[%clk 0:01:22.1]} 28... Kh7 {[%clk 0:01:02.8]} 29. Qe7+
{[%clk 0:01:22.9]} 1-0

[Event "*** Titled Tuesday Blitz"]
[Site "Chess.com"]
[Date "2019.06.04"]
[Round "4"]
[White "2165149677570"]
[Black "saraswathii"]
[Result "0-1"]
[WhiteElo "2225"]
[BlackElo "2311"]
[TimeControl "180+2"]
[EndTime "13:49:24 PDT"]
[Termination "saraswathii won by resignation"]

1. d4 {[%clk 0:03:01.9]} 1... Nc6 {[%clk 0:02:57.1]} 2. d5 {[%clk 0:03:02]} 2...
Ne5 {[%clk 0:02:44.4]} 3. f4 {[%clk 0:02:40.6]} 3... Ng6 {[%clk 0:02:37.1]} 4.
e4 {[%clk 0:02:35.5]} 4... e6 {[%clk 0:02:36.7]} 5. c4 {[%clk 0:02:29.2]} 5...
Bc5 {[%clk 0:02:33.3]} 6. Nf3 {[%clk 0:02:07.1]} 6... d6 {[%clk 0:02:17]} 7. h4
{[%clk 0:01:54.2]} 7... h5 {[%clk 0:02:15.3]} 8. Qd3 {[%clk 0:01:29]} 8... exd5
{[%clk 0:02:12.4]} 9. cxd5 {[%clk 0:01:26.4]} 9... Nf6 {[%clk 0:02:11.3]} 10.
Nc3 {[%clk 0:01:24.4]} 10... Ng4 {[%clk 0:02:01.1]} 11. Nd1 {[%clk 0:01:24.4]}
11... O-O {[%clk 0:01:54.5]} 12. g3 {[%clk 0:01:17.2]} 12... Re8 {[%clk
0:01:54.9]} 13. a3 {[%clk 0:01:08.4]} 13... f5 {[%clk 0:01:39.6]} 14. e5 {[%clk
0:00:48.1]} 14... dxe5 {[%clk 0:01:39.6]} 15. b4 {[%clk 0:00:47.4]} 15... exf4+
{[%clk 0:01:39.5]} 16. Be2 {[%clk 0:00:45]} 16... Bd6 {[%clk 0:01:33.4]} 17. O-O
{[%clk 0:00:36.8]} 17... fxg3 {[%clk 0:01:31.3]} 18. Bg5 {[%clk 0:00:37.5]}
18... Be7 {[%clk 0:01:29.2]} 19. Kg2 {[%clk 0:00:11.9]} 19... Bxg5 {[%clk
0:01:25.7]} 20. hxg5 {[%clk 0:00:12.6]} 20... Nf4+ {[%clk 0:01:26]} 0-1

[Event "*** Titled Tuesday Blitz"]
[Site "Chess.com"]
[Date "2019.06.04"]
[Round "4"]
[White "norwaytoadog"]
[Black "DavidStevanic"]
[Result "0-1"]
[WhiteElo "2216"]
[BlackElo "2185"]
[TimeControl "180+2"]
[EndTime "13:49:25 PDT"]
[Termination "DavidStevanic won on time"]

1. e4 {[%clk 0:00:13.8]} 1... e5 {[%clk 0:02:46.6]} 2. Nf3 {[%clk 0:00:13.6]}
2... Nc6 {[%clk 0:02:47]} 3. Bb5 {[%clk 0:00:14.4]} 3... a6 {[%clk 0:02:47.8]}
4. Ba4 {[%clk 0:00:14.2]} 4... Nf6 {[%clk 0:02:48.4]} 5. d3 {[%clk 0:00:15.2]}
5... b5 {[%clk 0:02:48.3]} 6. Bb3 {[%clk 0:00:15.1]} 6... Bc5 {[%clk 0:02:49.8]}
7. O-O {[%clk 0:00:15.1]} 7... O-O {[%clk 0:02:47.4]} 8. c3 {[%clk 0:00:15.5]}
8... d6 {[%clk 0:02:44]} 9. Qe2 {[%clk 0:00:16.1]} 9... h6 {[%clk 0:02:43.2]}
10. a4 {[%clk 0:00:15.4]} 10... b4 {[%clk 0:02:41]} 11. Nbd2 {[%clk 0:00:15.6]}
11... Rb8 {[%clk 0:02:38.9]} 12. h3 {[%clk 0:00:15.3]} 12... bxc3 {[%clk
0:02:38.7]} 13. bxc3 {[%clk 0:00:15.4]} 13... Be6 {[%clk 0:02:30.3]} 14. Bc4
{[%clk 0:00:14]} 14... Bxc4 {[%clk 0:02:29.9]} 15. Nxc4 {[%clk 0:00:14.4]} 15...
Nd7 {[%clk 0:02:26.2]} 16. a5 {[%clk 0:00:14]} 16... f5 {[%clk 0:02:20.4]} 17.
exf5 {[%clk 0:00:13.1]} 17... Rxf5 {[%clk 0:02:21.5]} 18. d4 {[%clk 0:00:10.2]}
18... exd4 {[%clk 0:02:08.7]} 19. Qe4 {[%clk 0:00:10.2]} 19... Ne7 {[%clk
0:02:08.3]} 20. cxd4 {[%clk 0:00:09.2]} 20... Bb4 {[%clk 0:02:06.4]} 21. Qe6+
{[%clk 0:00:08.8]} 21... Rf7 {[%clk 0:02:06.4]} 22. Bg5 {[%clk 0:00:04.5]} 22...
Nf8 {[%clk 0:02:00.4]} 23. Bxe7 {[%clk 0:00:03.3]} 23... Qxe7 {[%clk 0:01:57.5]}
24. Qxe7 {[%clk 0:00:02.8]} 24... Rxe7 {[%clk 0:01:59.2]} 0-1

[Event "*** Titled Tuesday Blitz"]
[Site "Chess.com"]
[Date "2019.06.04"]
[Round "4"]
[White "1g41-0"]
[Black "Eliwood44"]
[Result "1-0"]
[WhiteElo "2508"]
[BlackElo "2349"]
[TimeControl "180+2"]
[EndTime "13:49:31 PDT"]
[Termination "1g41-0 won by resignation"]

1. e4 {[%clk 0:03:01.9]} 1... e5 {[%clk 0:02:51.9]} 2. Nf3 {[%clk 0:03:02.5]}
2... Nc6 {[%clk 0:02:52.3]} 3. Bb5 {[%clk 0:03:03.9]} 3... g6 {[%clk 0:02:52.7]}
4. c3 {[%clk 0:02:59.1]} 4... a6 {[%clk 0:02:52.2]} 5. Ba4 {[%clk 0:02:56]} 5...
Bg7 {[%clk 0:02:52.8]} 6. d4 {[%clk 0:02:56.8]} 6... exd4 {[%clk 0:02:53.2]} 7.
cxd4 {[%clk 0:02:58.7]} 7... b5 {[%clk 0:02:54.3]} 8. Bb3 {[%clk 0:02:58.5]}
8... Nge7 {[%clk 0:02:55.1]} 9. O-O {[%clk 0:02:48.7]} 9... d6 {[%clk
0:02:54.6]} 10. d5 {[%clk 0:02:42.7]} 10... Na5 {[%clk 0:02:55.4]} 11. Nc3
{[%clk 0:02:42.1]} 11... O-O {[%clk 0:02:54.1]} 12. Nd4 {[%clk 0:02:40.6]} 12...
c5 {[%clk 0:02:48.8]} 13. dxc6 {[%clk 0:02:40.3]} 13... Nexc6 {[%clk 0:02:49.4]}
14. Nxc6 {[%clk 0:02:41.5]} 14... Nxc6 {[%clk 0:02:51.3]} 15. Bd5 {[%clk
0:02:37]} 15... Bd7 {[%clk 0:02:51.2]} 16. Be3 {[%clk 0:02:33.4]} 16... Rc8
{[%clk 0:02:49.3]} 17. Bxc6 {[%clk 0:02:33]} 17... Bxc6 {[%clk 0:02:47.1]} 18.
Bd4 {[%clk 0:02:34.9]} 18... b4 {[%clk 0:02:43.1]} 19. Bxg7 {[%clk 0:02:34.9]}
19... Kxg7 {[%clk 0:02:42.7]} 20. Qd4+ {[%clk 0:02:35.6]} 20... Qf6 {[%clk
0:02:43.8]} 21. Qxb4 {[%clk 0:02:35.4]} 21... Rb8 {[%clk 0:02:44.9]} 22. Qa3
{[%clk 0:02:31.1]} 22... Rfe8 {[%clk 0:02:44.7]} 23. Rfe1 {[%clk 0:02:17.8]}
23... Re6 {[%clk 0:02:38.1]} 24. Rad1 {[%clk 0:02:17.4]} 24... Rbe8 {[%clk
0:02:35.3]} 25. f3 {[%clk 0:02:15.9]} 25... h5 {[%clk 0:02:35.4]} 26. Qxa6
{[%clk 0:02:10.7]} 26... Ba8 {[%clk 0:02:36.3]} 27. Qc4 {[%clk 0:02:03.6]} 27...
h4 {[%clk 0:02:02.8]} 28. Qd4 {[%clk 0:01:54.8]} 28... h3 {[%clk 0:02:01.6]} 29.
Qxf6+ {[%clk 0:01:53.3]} 29... Kxf6 {[%clk 0:02:01.8]} 30. Nd5+ {[%clk
0:01:47.9]} 30... Bxd5 {[%clk 0:02:02.2]} 31. Rxd5 {[%clk 0:01:49.8]} 31... hxg2
{[%clk 0:02:03.9]} 32. Kxg2 {[%clk 0:01:50.9]} 32... Rc8 {[%clk 0:02:05.1]} 33.
Re2 {[%clk 0:01:51.6]} 33... Ke7 {[%clk 0:02:03.4]} 34. Rdd2 {[%clk 0:01:50.9]}
34... Rc5 {[%clk 0:02:02.7]} 35. Rc2 {[%clk 0:01:51.2]} 35... Rg5+ {[%clk
0:02:02.7]} 36. Kf2 {[%clk 0:01:52.4]} 36... Rh5 {[%clk 0:02:03.8]} 37. Ke1
{[%clk 0:01:51.3]} 37... Rh3 {[%clk 0:02:04.6]} 38. Rc3 {[%clk 0:01:46]} 38...
f5 {[%clk 0:02:05.5]} 39. Rce3 {[%clk 0:01:41.2]} 39... Kf6 {[%clk 0:01:58]} 40.
Rf2 {[%clk 0:01:30]} 40... Re5 {[%clk 0:01:56.8]} 41. Ke2 {[%clk 0:01:27.5]}
41... Rb5 {[%clk 0:01:57]} 42. b3 {[%clk 0:01:28]} 42... Rc5 {[%clk 0:01:56.1]}
43. Kd2 {[%clk 0:01:23.9]} 43... Ra5 {[%clk 0:01:53.8]} 44. a4 {[%clk
0:01:24.1]} 44... Re5 {[%clk 0:01:54.7]} 45. f4 {[%clk 0:01:19]} 1-0

[Event "*** Titled Tuesday Blitz"]
[Site "Chess.com"]
[Date "2019.06.04"]
[Round "4"]
[White "H3nriqueTV"]
[Black "HanSchut"]
[Result "0-1"]
[WhiteElo "2162"]
[BlackElo "2192"]
[TimeControl "180+2"]
[EndTime "13:49:31 PDT"]
[Termination "HanSchut won by resignation"]

1. e4 {[%clk 0:03:01.9]} 1... c5 {[%clk 0:02:59.2]} 2. Nf3 {[%clk 0:03:02.5]}
2... d6 {[%clk 0:03:00.5]} 3. b3 {[%clk 0:03:00.5]} 3... Nf6 {[%clk 0:02:56.9]}
4. d3 {[%clk 0:03:00.3]} 4... g6 {[%clk 0:02:58.1]} 5. Bb2 {[%clk 0:03:00]} 5...
Bg7 {[%clk 0:02:59.5]} 6. Nc3 {[%clk 0:02:59.2]} 6... O-O {[%clk 0:02:58.6]} 7.
g3 {[%clk 0:02:58.7]} 7... Nc6 {[%clk 0:02:58.1]} 8. Bg2 {[%clk 0:02:58.2]} 8...
Bg4 {[%clk 0:02:50.5]} 9. O-O {[%clk 0:02:57.8]} 9... Nd4 {[%clk 0:02:51.2]} 10.
Re1 {[%clk 0:02:42.8]} 10... Nd7 {[%clk 0:02:40]} 11. Rb1 {[%clk 0:02:34.9]}
11... Ne5 {[%clk 0:02:37.6]} 12. Re3 {[%clk 0:02:32.6]} 12... Bh6 {[%clk
0:02:30.2]} 13. h3 {[%clk 0:02:33.8]} 13... Bxf3 {[%clk 0:01:56.3]} 14. Bxf3
{[%clk 0:02:29.7]} 14... Bxe3 {[%clk 0:01:55.5]} 15. fxe3 {[%clk 0:02:20.9]}
15... Ndxf3+ {[%clk 0:01:52.9]} 16. Kg2 {[%clk 0:02:21.5]} 16... Ng5 {[%clk
0:01:33.7]} 17. Nd5 {[%clk 0:02:15.4]} 17... e6 {[%clk 0:01:12.6]} 18. Nf4
{[%clk 0:02:14.5]} 18... h5 {[%clk 0:01:00.5]} 19. Qe2 {[%clk 0:02:12.5]} 19...
Nc6 {[%clk 0:00:46.3]} 20. Rf1 {[%clk 0:02:11.4]} 20... Nh7 {[%clk 0:00:29.4]}
21. Qf3 {[%clk 0:02:03.9]} 21... Qg5 {[%clk 0:00:21.6]} 22. Qf2 {[%clk
0:02:03.3]} 22... Ne7 {[%clk 0:00:17.7]} 23. Kh2 {[%clk 0:01:57.3]} 23... e5
{[%clk 0:00:18.9]} 24. Ng2 {[%clk 0:01:58.4]} 24... f5 {[%clk 0:00:18.5]} 25.
exf5 {[%clk 0:01:55.3]} 25... Rxf5 {[%clk 0:00:20.1]} 26. Qe2 {[%clk 0:01:56.3]}
26... Rxf1 {[%clk 0:00:21]} 27. Qxf1 {[%clk 0:01:58.1]} 27... Rf8 {[%clk
0:00:21.9]} 28. Qe2 {[%clk 0:01:59.8]} 28... Qf5 {[%clk 0:00:22.5]} 29. Qd2
{[%clk 0:01:53.7]} 29... Qf2 {[%clk 0:00:23.1]} 30. Qc3 {[%clk 0:01:54.9]} 30...
Ng5 {[%clk 0:00:23]} 31. Qc4+ {[%clk 0:01:56.1]} 31... d5 {[%clk 0:00:23.6]} 0-1

[Event "*** Titled Tuesday Blitz"]
[Site "Chess.com"]
[Date "2019.06.04"]
[Round "4"]
[White "LastHeroJr"]
[Black "NateSolon"]
[Result "1-0"]
[WhiteElo "2513"]
[BlackElo "2482"]
[TimeControl "180+2"]
[EndTime "13:49:34 PDT"]
[Termination "LastHeroJr won by resignation"]

1. e4 {[%clk 0:03:01.9]} 1... e5 {[%clk 0:03:00]} 2. Nf3 {[%clk 0:03:03.1]} 2...
d6 {[%clk 0:03:01]} 3. d4 {[%clk 0:03:03.6]} 3... exd4 {[%clk 0:03:02.9]} 4.
Nxd4 {[%clk 0:03:04.3]} 4... Nf6 {[%clk 0:03:04.1]} 5. Nc3 {[%clk 0:03:05.9]}
5... Be7 {[%clk 0:03:05.4]} 6. g3 {[%clk 0:03:07.6]} 6... O-O {[%clk 0:03:05.1]}
7. Bg2 {[%clk 0:03:08.8]} 7... Re8 {[%clk 0:03:04.2]} 8. O-O {[%clk 0:03:09.8]}
8... c6 {[%clk 0:03:04.4]} 9. h3 {[%clk 0:03:06.2]} 9... Bf8 {[%clk 0:03:01.9]}
10. Re1 {[%clk 0:03:07.2]} 10... Nbd7 {[%clk 0:02:39.5]} 11. Bf4 {[%clk
0:03:07.2]} 11... Ne5 {[%clk 0:02:35.5]} 12. Qe2 {[%clk 0:02:36]} 12... Ng6
{[%clk 0:02:31.9]} 13. Be3 {[%clk 0:02:36.2]} 13... d5 {[%clk 0:02:25.5]} 14.
exd5 {[%clk 0:02:34.6]} 14... cxd5 {[%clk 0:02:17.8]} 15. a3 {[%clk 0:02:15.6]}
15... h6 {[%clk 0:01:37.6]} 16. Rad1 {[%clk 0:02:15.2]} 16... Ne5 {[%clk
0:01:38.4]} 17. Ndb5 {[%clk 0:01:47.6]} 17... a6 {[%clk 0:01:39.2]} 18. Nxd5
{[%clk 0:01:41.9]} 18... axb5 {[%clk 0:01:26.4]} 19. Bb6 {[%clk 0:01:42.1]}
19... Qd6 {[%clk 0:01:08.8]} 20. Bc7 {[%clk 0:01:19.3]} 20... Qe6 {[%clk
0:00:52.1]} 21. Bxe5 {[%clk 0:01:06.4]} 21... Nxd5 {[%clk 0:00:50.4]} 22. Rxd5
{[%clk 0:00:47.9]} 22... f6 {[%clk 0:00:51.4]} 23. Rd2 {[%clk 0:00:49.3]} 23...
Kh8 {[%clk 0:00:51.6]} 24. Bf4 {[%clk 0:00:45.8]} 24... Qd5 {[%clk 0:00:52.9]}
1-0

[Event "*** Titled Tuesday Blitz"]
[Site "Chess.com"]
[Date "2019.06.04"]
[Round "4"]
[White "catalin009"]
[Black "ehrenfeld"]
[Result "1-0"]
[WhiteElo "2495"]
[BlackElo "2499"]
[TimeControl "180+2"]
[EndTime "13:50:00 PDT"]
[Termination "catalin009 won by resignation"]

1. Nf3 {[%clk 0:03:01.9]} 1... d6 {[%clk 0:02:59.9]} 2. g3 {[%clk 0:03:01.1]}
2... e5 {[%clk 0:03:00.3]} 3. Bg2 {[%clk 0:03:02.5]} 3... f5 {[%clk 0:03:01.4]}
4. O-O {[%clk 0:03:03.6]} 4... Nf6 {[%clk 0:03:02.5]} 5. d4 {[%clk 0:02:59.2]}
5... e4 {[%clk 0:03:03]} 6. Ne1 {[%clk 0:03:00.9]} 6... d5 {[%clk 0:03:04.1]} 7.
c4 {[%clk 0:03:02.2]} 7... c6 {[%clk 0:03:04.5]} 8. Nc3 {[%clk 0:03:02.5]} 8...
dxc4 {[%clk 0:02:59.6]} 9. f3 {[%clk 0:02:54.3]} 9... exf3 {[%clk 0:02:59.6]}
10. Nxf3 {[%clk 0:02:56]} 10... Be7 {[%clk 0:02:57.4]} 11. Ne5 {[%clk
0:02:47.4]} 11... Be6 {[%clk 0:02:58.2]} 12. e4 {[%clk 0:01:59.7]} 12... fxe4
{[%clk 0:02:56.7]} 13. Nxe4 {[%clk 0:02:01.3]} 13... O-O {[%clk 0:02:55.6]} 14.
Ng5 {[%clk 0:02:00.4]} 14... Bd5 {[%clk 0:02:50.4]} 15. Bh3 {[%clk 0:01:59]}
15... Qd6 {[%clk 0:01:54.7]} 16. Qc2 {[%clk 0:01:42.2]} 16... Be4 {[%clk
0:01:14.4]} 17. Qd1 {[%clk 0:01:00.5]} 17... Bd5 {[%clk 0:01:01.5]} 18. Qc2
{[%clk 0:00:54.8]} 18... Be4 {[%clk 0:01:01]} 19. Qxc4+ {[%clk 0:00:56]} 19...
Bd5 {[%clk 0:00:56.2]} 20. Qc2 {[%clk 0:00:53.7]} 20... Be4 {[%clk 0:00:44]} 21.
Qc4+ {[%clk 0:00:53.8]} 21... Bd5 {[%clk 0:00:45]} 22. Qd3 {[%clk 0:00:55.5]}
22... h6 {[%clk 0:00:31.5]} 23. Rxf6 {[%clk 0:00:42.5]} 1-0

[Event "*** Titled Tuesday Blitz"]
[Site "Chess.com"]
[Date "2019.06.04"]
[Round "4"]
[White "Rish_97"]
[Black "raviteja81293"]
[Result "0-1"]
[WhiteElo "2441"]
[BlackElo "2577"]
[TimeControl "180+2"]
[EndTime "13:50:01 PDT"]
[Termination "raviteja81293 won by resignation"]

1. e4 {[%clk 0:03:01.9]} 1... c6 {[%clk 0:02:59.1]} 2. Nf3 {[%clk 0:03:01.9]}
2... d5 {[%clk 0:03:00]} 3. Nc3 {[%clk 0:03:03.4]} 3... dxe4 {[%clk 0:03:01.2]}
4. Nxe4 {[%clk 0:03:04.2]} 4... Nf6 {[%clk 0:03:03.1]} 5. Qe2 {[%clk 0:03:05.1]}
5... Nxe4 {[%clk 0:03:03.5]} 6. Qxe4 {[%clk 0:03:07]} 6... Be6 {[%clk
0:03:05.2]} 7. b3 {[%clk 0:02:57.3]} 7... Nd7 {[%clk 0:03:05.2]} 8. Bb2 {[%clk
0:02:54.2]} 8... Nf6 {[%clk 0:03:03.6]} 9. Qh4 {[%clk 0:02:54.2]} 9... Bf5
{[%clk 0:02:56.7]} 10. O-O-O {[%clk 0:02:51]} 10... e6 {[%clk 0:02:58.2]} 11.
Nd4 {[%clk 0:02:41.1]} 11... Bg6 {[%clk 0:02:58.1]} 12. Qg3 {[%clk 0:02:01.7]}
12... Bd6 {[%clk 0:02:54.4]} 13. Qe3 {[%clk 0:02:02.1]} 13... O-O {[%clk
0:02:46.3]} 14. h4 {[%clk 0:01:58.1]} 14... Qa5 {[%clk 0:02:46.9]} 15. Kb1
{[%clk 0:01:56.8]} 15... Nd5 {[%clk 0:02:45.9]} 16. Qe1 {[%clk 0:01:53.1]} 16...
e5 {[%clk 0:02:33.5]} 17. h5 {[%clk 0:01:53.7]} 17... exd4 {[%clk 0:01:51]} 18.
hxg6 {[%clk 0:01:54.6]} 18... Rae8 {[%clk 0:01:47.4]} 19. gxf7+ {[%clk
0:01:37.8]} 19... Kxf7 {[%clk 0:01:47.1]} 20. Be2 {[%clk 0:01:35.4]} 20... d3
{[%clk 0:01:48.2]} 21. cxd3 {[%clk 0:01:17.8]} 21... Nb4 {[%clk 0:01:40.5]} 22.
Rxh7 {[%clk 0:00:31.8]} 22... Qxa2+ {[%clk 0:01:39.2]} 23. Kc1 {[%clk 0:00:33]}
23... Be5 {[%clk 0:01:40.7]} 24. d4 {[%clk 0:00:25.2]} 24... Bxd4 {[%clk
0:01:32.1]} 25. Bh5+ {[%clk 0:00:20.8]} 25... Kg8 {[%clk 0:01:30.5]} 26. Bf7+
{[%clk 0:00:11.3]} 26... Kxf7 {[%clk 0:01:27.3]} 0-1

[Event "*** Titled Tuesday Blitz"]
[Site "Chess.com"]
[Date "2019.06.04"]
[Round "4"]
[White "SamCopeland"]
[Black "ZenBull"]
[Result "1-0"]
[WhiteElo "2096"]
[BlackElo "2096"]
[TimeControl "180+2"]
[EndTime "13:50:05 PDT"]
[Termination "SamCopeland won by resignation"]

1. e4 {[%clk 0:03:01.9]} 1... d6 {[%clk 0:03:00.3]} 2. d4 {[%clk 0:02:59.5]}
2... Nf6 {[%clk 0:03:01.5]} 3. Nc3 {[%clk 0:02:59.6]} 3... Nbd7 {[%clk
0:03:01.6]} 4. g4 {[%clk 0:02:53.1]} 4... g6 {[%clk 0:02:41.1]} 5. g5 {[%clk
0:02:49.9]} 5... Nh5 {[%clk 0:02:42.1]} 6. Be2 {[%clk 0:02:49.5]} 6... Ng7
{[%clk 0:02:38]} 7. Be3 {[%clk 0:02:41.4]} 7... e5 {[%clk 0:02:38]} 8. Nf3
{[%clk 0:02:35.5]} 8... Be7 {[%clk 0:02:29]} 9. h4 {[%clk 0:02:34.3]} 9... c6
{[%clk 0:02:23.5]} 10. Qd2 {[%clk 0:02:32.7]} 10... Qc7 {[%clk 0:02:12.2]} 11.
O-O-O {[%clk 0:02:26.7]} 11... Nb6 {[%clk 0:02:10.2]} 12. dxe5 {[%clk
0:02:15.7]} 12... dxe5 {[%clk 0:02:10.4]} 13. Nxe5 {[%clk 0:02:16.8]} 13... Be6
{[%clk 0:01:53.2]} 14. f4 {[%clk 0:01:47]} 14... f6 {[%clk 0:01:12.3]} 15. Ng4
{[%clk 0:01:33.3]} 15... Bxg4 {[%clk 0:01:04.6]} 16. Bxg4 {[%clk 0:01:34.2]}
16... Nc4 {[%clk 0:00:56.8]} 17. Qe2 {[%clk 0:01:35.1]} 17... Nxe3 {[%clk
0:00:56.4]} 18. Qxe3 {[%clk 0:01:37]} 18... Rd8 {[%clk 0:00:42.8]} 19. Rxd8+
{[%clk 0:01:33.6]} 19... Bxd8 {[%clk 0:00:38.7]} 20. Rd1 {[%clk 0:01:28]} 20...
f5 {[%clk 0:00:33.3]} 21. exf5+ {[%clk 0:01:23.4]} 21... Kf8 {[%clk 0:00:31.7]}
22. f6 {[%clk 0:01:19.3]} 22... Nf5 {[%clk 0:00:32.1]} 23. Bxf5 {[%clk 0:01:19]}
23... gxf5 {[%clk 0:00:33.7]} 24. Qe6 {[%clk 0:01:06.5]} 24... Qxf4+ {[%clk
0:00:20.9]} 25. Kb1 {[%clk 0:01:05.6]} 25... Qc7 {[%clk 0:00:11.9]} 26. Rd7
{[%clk 0:01:03.6]} 1-0

[Event "*** Titled Tuesday Blitz"]
[Site "Chess.com"]
[Date "2019.06.04"]
[Round "4"]
[White "pedro_gines"]
[Black "Caterpiller35"]
[Result "0-1"]
[WhiteElo "2383"]
[BlackElo "2420"]
[TimeControl "180+2"]
[EndTime "13:50:06 PDT"]
[Termination "Caterpiller35 won by checkmate"]

1. d4 {[%clk 0:03:01.9]} 1... Nf6 {[%clk 0:02:59.3]} 2. c4 {[%clk 0:03:02.1]}
2... e6 {[%clk 0:02:59.5]} 3. Nf3 {[%clk 0:03:01.2]} 3... Bb4+ {[%clk 0:03:00]}
4. Nbd2 {[%clk 0:03:01.1]} 4... O-O {[%clk 0:02:52.8]} 5. a3 {[%clk 0:02:59.6]}
5... Bxd2+ {[%clk 0:02:48]} 6. Qxd2 {[%clk 0:03:01.5]} 6... b6 {[%clk 0:02:41]}
7. e3 {[%clk 0:03:02.1]} 7... Bb7 {[%clk 0:02:35.2]} 8. Be2 {[%clk 0:03:02.5]}
8... a5 {[%clk 0:02:26.8]} 9. O-O {[%clk 0:03:01.4]} 9... a4 {[%clk 0:02:20.9]}
10. Qc2 {[%clk 0:02:58.2]} 10... d6 {[%clk 0:02:17.4]} 11. Bd2 {[%clk
0:02:55.3]} 11... Ne4 {[%clk 0:02:07.3]} 12. Be1 {[%clk 0:02:54.1]} 12... f5
{[%clk 0:02:03.3]} 13. Nd2 {[%clk 0:02:54.9]} 13... Nd7 {[%clk 0:02:03.2]} 14.
Nb1 {[%clk 0:02:52.8]} 14... Qg5 {[%clk 0:01:55.8]} 15. Bf3 {[%clk 0:02:06.2]}
15... Rf6 {[%clk 0:01:54.2]} 16. Nc3 {[%clk 0:01:56.3]} 16... Rh6 {[%clk
0:01:46.9]} 17. d5 {[%clk 0:01:09.9]} 17... Qh4 {[%clk 0:01:38.8]} 18. h3 {[%clk
0:01:10.5]} 18... Ng5 {[%clk 0:01:33.4]} 19. Bd1 {[%clk 0:00:02.8]} 19... Nxh3+
{[%clk 0:01:19.3]} 20. gxh3 {[%clk 0:00:04.7]} 20... Qxh3 {[%clk 0:01:20.1]} 21.
f4 {[%clk 0:00:05.7]} 21... Qh1+ {[%clk 0:01:10]} 22. Kf2 {[%clk 0:00:05.7]}
22... Qh2+ {[%clk 0:01:03.1]} 23. Kf3 {[%clk 0:00:07.1]} 23... Rh3+ {[%clk
0:01:02.1]} 24. Bg3 {[%clk 0:00:08.1]} 24... Rxg3# {[%clk 0:01:00.9]} 0-1